{"text_format":"1","workbook":"xlsx","n_sheets":2,"sheets":["Sheet1","Sheet2"],"not_rendered":{"charts":1,"images":0,"macros":1,"external_links":0,"defined_names":23,"comments":0,"pivot_tables":0},"unopened":[],"bounds":{"document_bytes":16777216,"sheet_cells":100000,"rows_first":2000,"rows_last":500,"rows_between":2000,"halvings":0,"cell_chars":16384,"cell_head_chars":4096},"cells_cut":0,"cells_raw":0,"read":"whole","date_system":"1900"}

{"sheet":"Sheet1","index":0,"n_rows":47,"n_cols":9,"rows_kept":47,"cut":false,"hidden":false,"merged":[]}
[]
[]
[null,"前回\n当選\n番号",4,6,10,24,32,37]
[]
[null,null,38,11,29,48,6,42]
[null,"予想",16,26,28,31,38,41]
[]
[null,"予想",1,5,30,31,33,34,37]
[]
[]
[null,null,16,38,null,34,9,1]
[null,null,26,11,null,16,18,5]
[null,null,28,29,null,5,2,30]
[null,null,31,48,null,13,12,31]
[null,null,38,6,null,10,33,33]
[null,null,41,42,null,24,21,34]
[null,null,null,null,null,37,26,37]
[null,null,null,null,null,null,28]
[null,null,null,null,null,null,20]
[null,null,null,null,null,null,37]
[null,null,null,null,null,null,13]
[null,null,null,null,null,null,10]
[null,null,null,null,null,null,5]
[null,null,null,null,null,null,22]
[null,null,null,null,null,null,3]
[null,null,null,null,null,null,1]
[null,null,null,null,null,null,36]
[null,null,null,null,null,null,17]
[null,null,null,null,null,null,29]
[null,null,null,null,null,null,24]
[null,null,null,null,null,null,8]
[null,null,null,null,null,null,4]
[null,null,null,null,null,null,27]
[null,null,null,null,null,null,30]
[null,null,null,null,null,null,6]
[null,null,null,null,null,null,19]
[null,null,null,null,null,null,7]
[null,null,null,null,null,null,32]
[null,null,null,null,null,null,14]
[null,null,{"$f":"RANDBETWEEN(1,43)","v":7},null,null,{"$f":"RANDBETWEEN(1,37)","v":3},23]
[null,null,null,null,null,null,35]
[null,null,null,null,null,null,25]
[null,null,null,null,null,null,11]
[null,null,null,null,null,null,31]
[null,null,null,null,null,null,16]
[null,null,null,null,null,null,15]
[null,null,null,null,null,null,34]

{"sheet":"Sheet2","index":1,"n_rows":46,"n_cols":4,"rows_kept":46,"cut":false,"hidden":false,"merged":[]}
[{"$f":"RANDBETWEEN(1,43)","v":23}]
[null,"出目","回数"]
[null,"１",20,{"$f":"IF(RANK(C3,kai)>6,0,RANK(C3,kai))","v":0}]
[null,"２",24,{"$f":"IF(RANK(C4,kai)>6,0,RANK(C4,kai))","v":0}]
[null,"３",26,0]
[null,"４",30,2]
[null,"５",26,0]
[null,"６",22,0]
[null,"７",23,0]
[null,"８",22,0]
[null,"９",29,5]
[null,"１０",20,0]
[null,"１１",23,0]
[null,"１２",17,0]
[null,"１３",18,0]
[null,"１４",20,0]
[null,"１５",22,0]
[null,"１６",30,2]
[null,"１７",24,0]
[null,"１８",27,0]
[null,"１９",27,0]
[null,"２０",25,0]
[null,"２１",12,0]
[null,"２２",29,5]
[null,"２３",28,0]
[null,"２４",30,2]
[null,"２５",22,0]
[null,"２６",21,0]
[null,"２７",28,0]
[null,"２８",18,0]
[null,"２９",23,0]
[null,"３０",24,0]
[null,"３１",28,0]
[null,"３２",18,0]
[null,"３３",28,0]
[null,"３４",25,0]
[null,"３５",15,0]
[null,"３６",18,0]
[null,"３７",21,0]
[null,"３８",14,0]
[null,"３９",20,0]
[null,"４０",26,0]
[null,"４１",32,1]
[null,"４２",21,0]
[null,"４３",24,0]
[null,null,{"$f":"SUM(kai)","v":1000}]